[Event "Limburg Open 2022"]
[Site "Maastricht"]
[Date "2022.06.05"]
[Round "4.13"]
[White "Fischer, Daniel"]
[Black "Bentel, Robin"]
[Result "1-0"]
[ECO "B90"]
[WhiteElo "2324"]
[BlackElo "2225"]
[PlyCount "69"]
[EventDate "2022.06.03"]
[EventType "swiss"]
[EventRounds "7"]
[EventCountry "NED"]
[SourceTitle "Limburg Open"]
[Source "Limburg Open"]
[SourceDate "2022.06.06"]
[SourceVersion "7"]
[SourceVersionDate "2022.06.06"]
[SourceQuality "1"]
[TimeControl "7200+15"]

1. e4 {[%emt 0:00:04]} c5 {[%emt 0:00:11]} 2. Nf3 {[%emt 0:00:07]} d6 {[%emt 0:
00:11]} 3. d4 {[%emt 0:00:59]} cxd4 {[%emt 0:00:10]} 4. Nxd4 {[%emt 0:00:05]}
Nf6 {[%emt 0:00:12]} 5. Nc3 {[%emt 0:00:04]} a6 {[%emt 0:00:20]} 6. Be3 {
[%emt 0:00:42]} e5 {[%emt 0:00:25]} 7. Nb3 {[%emt 0:01:51]} Be7 {[%emt 0:00:38]
} 8. h3 {[%emt 0:00:39]} Be6 {[%emt 0:01:31]} 9. f4 {[%emt 0:00:32]} exf4 {
[%emt 0:00:52]} 10. Bxf4 {[%emt 0:00:04]} Nc6 {[%emt 0:00:27]} 11. Qe2 {
[%emt 0:00:41]} Nd7 {[%emt 0:01:18]} 12. O-O-O {[%emt 0:00:09]} Nde5 {[%emt 0:
04:53]} 13. Kb1 {[%emt 0:02:07]} O-O {[%emt 0:01:25]} 14. g4 {[%emt 0:01:00]}
b5 {[%emt 0:06:58]} 15. Nd5 {[%emt 0:10:19]} a5 {[%emt 0:21:48]} 16. Qxb5 {
[%emt 0:10:10]} a4 {[%emt 0:13:58]} 17. Nd4 {[%emt 0:07:37]} Bxd5 {[%emt 0:08:
33]} 18. Qxd5 {[%emt 0:17:33]} Ra5 {[%emt 0:13:26]} 19. Nb5 {[%emt 0:01:08]}
Bg5 {[%emt 0:01:59]} 20. Bxg5 {[%emt 0:09:19]} Qxg5 {[%emt 0:00:07]} 21. Qd2 {
[%emt 0:00:54]} Qe7 {[%emt 0:03:19]} 22. Be2 {[%emt 0:03:30]} Rb8 {[%emt 0:03:
49]} 23. Nxd6 {[%emt 0:08:36]} Qc7 {[%emt 0:02:42]} 24. Qe3 {[%emt 0:13:00]} a3
{[%emt 0:09:01]} 25. b3 {[%emt 0:00:29]} Nb4 {[%emt 0:00:34]} 26. c3 {[%emt 0:
03:52]} Nxa2 {[%emt 0:01:18]} 27. Kxa2 {[%emt 0:01:50]} Rxb3 {[%emt 0:01:32]}
28. Nc4 {[%emt 0:09:41]} Rab5 {[%emt 0:21:18]} 29. Qd4 {[%emt 0:02:49]} Rb8 {
[%emt 0:03:18]} 30. Qxe5 {[%emt 0:05:29]} Rb2+ {[%emt 0:00:16]} 31. Ka1 {
[%emt 0:00:01]} Qb7 {[%emt 0:00:34]} 32. Qa5 {[%emt 0:01:33]} h6 {[%emt 0:00:
52]} 33. Rd8+ {[%emt 0:01:12]} Rxd8 {[%emt 0:00:02]} 34. Qxd8+ {[%emt 0:00:05]}
Kh7 {[%emt 0:00:03]} 35. Qd1 {[%emt 0:00:57]} 1-0

[Event "Limburg Open 2022"]
[Site "Maastricht"]
[Date "2022.06.05"]
[Round "4.14"]
[White "Decoster, Frederic"]
[Black "Bruil, Rembrandt"]
[Result "1/2-1/2"]
[ECO "B35"]
[WhiteElo "2295"]
[BlackElo "2166"]
[PlyCount "88"]
[EventDate "2022.06.03"]
[EventType "swiss"]
[EventRounds "7"]
[EventCountry "NED"]
[SourceTitle "Limburg Open"]
[Source "Limburg Open"]
[SourceDate "2022.06.06"]
[SourceVersion "7"]
[SourceVersionDate "2022.06.06"]
[SourceQuality "1"]
[TimeControl "7200+15"]

1. e4 {[%emt 0:00:29]} c5 {[%emt 0:00:07]} 2. Nf3 {[%emt 0:00:08]} Nc6 {
[%emt 0:00:06]} 3. d4 {[%emt 0:00:31]} cxd4 {[%emt 0:00:06]} 4. Nxd4 {[%emt 0:
00:10]} g6 {[%emt 0:00:03]} 5. Nc3 {[%emt 0:00:17]} Bg7 {[%emt 0:00:05]} 6. Be3
{[%emt 0:00:10]} Nf6 {[%emt 0:00:06]} 7. Bc4 {[%emt 0:00:11]} O-O {[%emt 0:00:
07]} 8. Bb3 {[%emt 0:00:04]} Re8 {[%emt 0:00:03]} 9. Nxc6 {[%emt 0:01:21]} dxc6
{[%emt 0:00:05]} 10. Qxd8 {[%emt 0:00:08]} Rxd8 {[%emt 0:00:04]} 11. a4 {
[%emt 0:00:15]} Ng4 {[%emt 0:10:37]} 12. Bg5 {[%emt 0:01:40]} h6 {[%emt 0:01:
47]} 13. Bxe7 {[%emt 0:05:52]} Bxc3+ {[%emt 0:00:36]} 14. bxc3 {[%emt 0:00:08]}
Re8 {[%emt 0:00:03]} 15. Ba3 {[%emt 0:05:28]} Rxe4+ {[%emt 0:01:17]} 16. Kd2 {
[%emt 0:16:10]} Re8 {[%emt 0:29:28]} 17. Rhe1 {[%emt 0:13:01]} Be6 {[%emt 0:01:
18]} 18. Re2 {[%emt 0:17:11]} Rad8+ {[%emt 0:14:14]} 19. Ke1 {[%emt 0:05:12]}
Bxb3 {[%emt 0:00:28]} 20. cxb3 {[%emt 0:00:07]} Rxe2+ {[%emt 0:01:19]} 21. Kxe2
{[%emt 0:00:26]} Re8+ {[%emt 0:00:08]} 22. Kf3 {[%emt 0:00:58]} Ne5+ {[%emt 0:
03:39]} 23. Kg3 {[%emt 0:11:57]} Rd8 {[%emt 0:01:55]} 24. Re1 {[%emt 0:05:19]}
Rd3+ {[%emt 0:01:33]} 25. Re3 {[%emt 0:03:58]} Rxe3+ {[%emt 0:01:50]} 26. fxe3
{[%emt 0:00:37]} f6 {[%emt 0:00:44]} 27. e4 {[%emt 0:09:31]} Kf7 {[%emt 0:00:
10]} 28. Kf4 {[%emt 0:02:25]} h5 {[%emt 0:02:08]} 29. h3 {[%emt 0:00:12]} Ke6 {
[%emt 0:00:09]} 30. Ke3 {[%emt 0:00:12]} g5 {[%emt 0:03:34]} 31. c4 {[%emt 0:
00:16]} Ng6 {[%emt 0:00:41]} 32. Kf3 {[%emt 0:03:53]} Nf4 {[%emt 0:00:43]} 33.
Bc5 {[%emt 0:00:27]} b6 {[%emt 0:09:12]} 34. Be3 {[%emt 0:01:05]} Nd3 {[%emt 0:
03:10]} 35. a5 {[%emt 0:01:34]} Ne5+ {[%emt 0:10:17]} 36. Ke2 {[%emt 0:00:45]}
c5 {[%emt 0:00:03]} 37. axb6 {[%emt 0:00:45]} axb6 {[%emt 0:00:05]} 38. Bd2 {
[%emt 0:05:44]} Nc6 {[%emt 0:06:41]} 39. Kd3 {[%emt 0:00:13]} Nd4 {[%emt 0:04:
28]} 40. b4 {[%emt 0:01:24]} Nc6 {[%emt 0:00:15]} 41. bxc5 {[%emt 0:00:29]}
bxc5 {[%emt 0:00:15]} 42. Be3 {[%emt 0:02:30]} Ne5+ {[%emt 0:01:03]} 43. Kc3 {
[%emt 0:00:07]} Kd6 {[%emt 0:00:10]} 44. Bf2 {[%emt 0:00:34]} Nd7 {[%emt 0:06:
24]} 1/2-1/2

[Event "Limburg Open 2022"]
[Site "Maastricht"]
[Date "2022.06.05"]
[Round "5.1"]
[White "Warmerdam, Max"]
[Black "Slagboom, Leandro"]
[Result "1-0"]
[ECO "A07"]
[WhiteElo "2613"]
[BlackElo "2098"]
[PlyCount "87"]
[EventDate "2022.06.03"]
[EventType "swiss"]
[EventRounds "7"]
[EventCountry "NED"]
[SourceTitle "Limburg Open"]
[Source "Limburg Open"]
[SourceDate "2022.06.06"]
[SourceVersion "7"]
[SourceVersionDate "2022.06.06"]
[SourceQuality "1"]
[TimeControl "7200+15"]

1. Nf3 {[%emt 0:00:27]} d5 {[%emt 0:00:19]} 2. g3 {[%emt 0:00:24]} Bg4 {
[%emt 0:01:32]} 3. Bg2 {[%emt 0:00:47]} c6 {[%emt 0:01:08]} 4. h3 {[%emt 0:00:
54]} Bh5 {[%emt 0:00:50]} 5. c4 {[%emt 0:01:50]} e6 {[%emt 0:02:59]} 6. d4 {
[%emt 0:00:39]} Nd7 {[%emt 0:01:23]} 7. cxd5 {[%emt 0:00:39]} exd5 {[%emt 0:00:
46]} 8. Nc3 {[%emt 0:01:14]} Ngf6 {[%emt 0:01:18]} 9. Ne5 {[%emt 0:01:34]} Nxe5
{[%emt 0:09:19]} 10. dxe5 {[%emt 0:00:15]} Nd7 {[%emt 0:00:34]} 11. O-O {
[%emt 0:00:21]} Bc5 {[%emt 0:05:07]} 12. Na4 {[%emt 0:00:08]} Qe7 {[%emt 0:08:
27]} 13. Nxc5 {[%emt 0:03:10]} Nxc5 {[%emt 0:01:25]} 14. Be3 {[%emt 0:09:16]}
O-O {[%emt 0:08:43]} 15. Rc1 {[%emt 0:13:54]} Nd7 {[%emt 0:01:30]} 16. g4 {
[%emt 0:33:41]} Bg6 {[%emt 0:00:06]} 17. f4 {[%emt 0:00:27]} f5 {[%emt 0:03:45]
} 18. g5 {[%emt 0:23:28]} Bh5 {[%emt 0:04:13]} 19. Rf2 {[%emt 0:02:16]} Rf7 {
[%emt 0:03:45]} 20. b4 {[%emt 0:03:15]} Nb6 {[%emt 0:05:06]} 21. Bxb6 {[%emt 0:
01:37]} axb6 {[%emt 0:00:05]} 22. b5 {[%emt 0:00:03]} Qe8 {[%emt 0:27:17]} 23.
Qb3 {[%emt 0:01:57]} Re7 {[%emt 0:08:35]} 24. bxc6 {[%emt 0:00:41]} bxc6 {
[%emt 0:00:41]} 25. Rxc6 {[%emt 0:07:22]} Qxc6 {[%emt 0:02:08]} 26. Bxd5+ {
[%emt 0:00:06]} Bf7 {[%emt 0:00:08]} 27. Bxc6 {[%emt 0:00:06]} Bxb3 {[%emt 0:
00:04]} 28. Bxa8 {[%emt 0:00:05]} Bxa2 {[%emt 0:08:51]} 29. e4 {[%emt 0:00:28]}
Be6 {[%emt 0:00:51]} 30. Bd5 {[%emt 0:00:35]} fxe4 {[%emt 0:00:32]} 31. Bxe6+ {
[%emt 0:03:24]} Rxe6 {[%emt 0:00:01]} 32. Rc2 {[%emt 0:00:07]} b5 {[%emt 0:04:
15]} 33. Kf2 {[%emt 0:07:22]} Rb6 {[%emt 0:03:00]} 34. Rc8+ {[%emt 0:02:38]}
Kf7 {[%emt 0:00:07]} 35. f5 {[%emt 0:00:01]} b4 {[%emt 0:00:51]} 36. e6+ {
[%emt 0:00:20]} Ke7 {[%emt 0:00:08]} 37. Rg8 {[%emt 0:01:31]} g6 {[%emt 0:03:
27]} 38. Rg7+ {[%emt 0:00:02]} Ke8 {[%emt 0:01:41]} 39. Rg8+ {[%emt 0:00:02]}
Ke7 {[%emt 0:00:05]} 40. Rg7+ {[%emt 0:00:01]} Ke8 {[%emt 0:00:01]} 41. Rxh7 {
[%emt 0:00:15]} gxf5 {[%emt 0:00:05]} 42. g6 {[%emt 0:00:10]} e3+ {[%emt 0:02:
45]} 43. Ke2 {[%emt 0:00:05]} Rxe6 {[%emt 0:01:02]} 44. Rh8+ {[%emt 0:00:02]}
1-0

[Event "Limburg Open 2022"]
[Site "Maastricht"]
[Date "2022.06.05"]
[Round "5.2"]
[White "Gurevich, Mikhail"]
[Black "Donchenko, Alexander"]
[Result "0-1"]
[ECO "A28"]
[WhiteElo "2576"]
[BlackElo "2602"]
[PlyCount "122"]
[EventDate "2022.06.03"]
[EventType "swiss"]
[EventRounds "7"]
[EventCountry "NED"]
[SourceTitle "Limburg Open"]
[Source "Limburg Open"]
[SourceDate "2022.06.06"]
[SourceVersion "7"]
[SourceVersionDate "2022.06.06"]
[SourceQuality "1"]
[TimeControl "7200+15"]

1. c4 {[%emt 0:00:02]} Nf6 {[%emt 0:00:11]} 2. Nc3 {[%emt 0:00:27]} e5 {
[%emt 0:00:22]} 3. Nf3 {[%emt 0:00:39]} Nc6 {[%emt 0:00:17]} 4. a3 {[%emt 0:00:
07]} d5 {[%emt 0:00:36]} 5. cxd5 {[%emt 0:00:07]} Nxd5 {[%emt 0:00:05]} 6. Qc2
{[%emt 0:00:04]} Nxc3 {[%emt 0:00:31]} 7. bxc3 {[%emt 0:00:38]} Bd6 {[%emt 0:
00:43]} 8. g3 {[%emt 0:08:31]} O-O {[%emt 0:00:34]} 9. Bg2 {[%emt 0:00:04]} Re8
{[%emt 0:00:23]} 10. d3 {[%emt 0:05:14]} Bf5 {[%emt 0:00:50]} 11. e4 {[%emt 0:
00:16]} Be6 {[%emt 0:01:23]} 12. Ng5 {[%emt 0:00:07]} Bd7 {[%emt 0:00:38]} 13.
O-O {[%emt 0:00:52]} h6 {[%emt 0:01:07]} 14. Nf3 {[%emt 0:00:04]} Na5 {[%emt 0:
00:34]} 15. d4 {[%emt 0:03:22]} Qe7 {[%emt 0:05:23]} 16. Nxe5 {[%emt 0:09:46]}
Bxe5 {[%emt 0:00:14]} 17. dxe5 {[%emt 0:00:07]} Qxe5 {[%emt 0:00:26]} 18. Bf4 {
[%emt 0:00:09]} Qc5 {[%emt 0:01:23]} 19. Qb2 {[%emt 0:00:06]} Qb5 {[%emt 0:14:
44]} 20. Qc2 {[%emt 0:18:56]} c5 {[%emt 0:01:53]} 21. Rfd1 {[%emt 0:01:07]} Qa4
{[%emt 0:06:50]} 22. Qe2 {[%emt 0:00:08]} Bf5 {[%emt 0:14:21]} 23. f3 {[%emt 0:
03:06]} Be6 {[%emt 0:01:33]} 24. Qe3 {[%emt 0:10:57]} Bb3 {[%emt 0:07:20]} 25.
Rd3 {[%emt 0:01:33]} b6 {[%emt 0:08:27]} 26. Bh3 {[%emt 0:02:23]} Nc4 {[%emt 0:
04:24]} 27. Qc1 {[%emt 0:02:12]} Ne5 {[%emt 0:01:22]} 28. Bxe5 {[%emt 0:02:25]}
Rxe5 {[%emt 0:00:49]} 29. Qd2 {[%emt 0:03:06]} Re7 {[%emt 0:07:15]} 30. Rd6 {
[%emt 0:00:17]} Rf8 {[%emt 0:02:42]} 31. Bf5 {[%emt 0:03:47]} Be6 {[%emt 0:02:
16]} 32. g4 {[%emt 0:00:07]} b5 {[%emt 0:04:36]} 33. Kh1 {[%emt 0:07:37]} a5 {
[%emt 0:02:06]} 34. Rg1 {[%emt 0:04:32]} Qxa3 {[%emt 0:04:08]} 35. g5 {[%emt 0:
06:12]} Qa2 {[%emt 0:02:24]} 36. Qf4 {[%emt 0:13:56]} h5 {[%emt 0:04:07]} 37.
g6 {[%emt 0:02:27]} fxg6 {[%emt 0:01:22]} 38. Qg5 {[%emt 0:00:32]} Bxf5 {
[%emt 0:00:29]} 39. Qxe7 {[%emt 0:03:23]} Qe2 {[%emt 0:00:49]} 40. Rd8 {
[%emt 0:00:10]} Qxf3+ {[%emt 0:01:10]} 41. Rg2 {[%emt 0:00:05]} Bg4 {[%emt 0:
02:11]} 42. Rxf8+ {[%emt 0:01:06]} Qxf8 {[%emt 0:00:02]} 43. Qxf8+ {[%emt 0:00:
24]} Kxf8 {[%emt 0:00:01]} 44. Ra2 {[%emt 0:00:11]} a4 {[%emt 0:08:54]} 45. c4
{[%emt 0:01:42]} Be6 {[%emt 0:04:26]} 46. Rf2+ {[%emt 0:00:07]} Ke7 {[%emt 0:
00:01]} 47. cxb5 {[%emt 0:00:06]} a3 {[%emt 0:00:08]} 48. Rf3 {[%emt 0:00:05]}
a2 {[%emt 0:00:03]} 49. Ra3 {[%emt 0:00:03]} Kd6 {[%emt 0:03:03]} 50. Ra6+ {
[%emt 0:05:04]} Kc7 {[%emt 0:00:47]} 51. Kg2 {[%emt 0:01:20]} Bb3 {[%emt 0:01:
08]} 52. Kf2 {[%emt 0:00:18]} g5 {[%emt 0:01:27]} 53. Ke3 {[%emt 0:00:11]} g4 {
[%emt 0:00:11]} 54. Kf4 {[%emt 0:00:07]} c4 {[%emt 0:00:11]} 55. e5 {[%emt 0:
00:21]} c3 {[%emt 0:00:06]} 56. Ke3 {[%emt 0:00:05]} h4 {[%emt 0:00:14]} 57.
Kd3 {[%emt 0:00:04]} c2 {[%emt 0:00:10]} 58. Kd2 {[%emt 0:00:05]} g3 {[%emt 0:
00:32]} 59. hxg3 {[%emt 0:00:05]} h3 {[%emt 0:00:19]} 60. e6 {[%emt 0:00:08]}
h2 {[%emt 0:00:15]} 61. e7 {[%emt 0:00:08]} Kd7 {[%emt 0:00:14]} 0-1

[Event "Limburg Open 2022"]
[Site "Maastricht"]
[Date "2022.06.05"]
[Round "5.3"]
[White "Schroer, Marcel"]
[Black "Van Foreest, Lucas"]
[Result "0-1"]
[ECO "D02"]
[WhiteElo "2096"]
[BlackElo "2553"]
[PlyCount "112"]
[EventDate "2022.06.03"]
[EventType "swiss"]
[EventRounds "7"]
[EventCountry "NED"]
[SourceTitle "Limburg Open"]
[Source "Limburg Open"]
[SourceDate "2022.06.06"]
[SourceVersion "7"]
[SourceVersionDate "2022.06.06"]
[SourceQuality "1"]
[TimeControl "7200+15"]

1. d4 {[%emt 0:00:18]} d5 {[%emt 0:00:57]} 2. Nf3 {[%emt 0:01:33]} e6 {[%emt 0:
00:00]} 3. g3 {[%emt 0:00:28]} b6 {[%emt 0:00:00]} 4. Bg2 {[%emt 0:00:24]} Bb7
{[%emt 0:00:00]} 5. O-O {[%emt 0:00:15]} Nd7 {[%emt 0:00:00]} 6. c4 {[%emt 0:
03:31]} dxc4 {[%emt 0:00:01]} 7. Qa4 {[%emt 0:04:46]} a6 {[%emt 0:03:27]} 8.
Qxc4 {[%emt 0:00:07]} b5 {[%emt 0:00:06]} 9. Qd3 {[%emt 0:06:27]} Ngf6 {
[%emt 0:00:36]} 10. Bg5 {[%emt 0:01:48]} c5 {[%emt 0:06:05]} 11. dxc5 {[%emt 0:
00:50]} Nxc5 {[%emt 0:04:29]} 12. Qxd8+ {[%emt 0:02:59]} Rxd8 {[%emt 0:00:41]}
13. Nc3 {[%emt 0:03:55]} b4 {[%emt 0:04:42]} 14. Bxf6 {[%emt 0:01:14]} gxf6 {
[%emt 0:00:07]} 15. Nd1 {[%emt 0:00:13]} Bh6 {[%emt 0:04:49]} 16. Ne3 {[%emt 0:
04:20]} Bxe3 {[%emt 0:10:48]} 17. fxe3 {[%emt 0:00:07]} Na4 {[%emt 0:08:00]}
18. Nd4 {[%emt 0:07:22]} Bxg2 {[%emt 0:00:09]} 19. Kxg2 {[%emt 0:00:04]} Nxb2 {
[%emt 0:01:24]} 20. Nc6 {[%emt 0:03:59]} Rd6 {[%emt 0:09:34]} 21. Nxb4 {
[%emt 0:04:44]} a5 {[%emt 0:06:16]} 22. Rab1 {[%emt 0:07:03]} Nc4 {[%emt 0:09:
07]} 23. Nc2 {[%emt 0:00:31]} O-O {[%emt 0:00:39]} 24. Rfd1 {[%emt 0:04:20]}
Rxd1 {[%emt 0:05:37]} 25. Rxd1 {[%emt 0:00:02]} Rc8 {[%emt 0:00:22]} 26. h3 {
[%emt 0:07:46]} Ne5 {[%emt 0:07:38]} 27. Ne1 {[%emt 0:24:01]} Rc3 {[%emt 0:02:
16]} 28. Kf2 {[%emt 0:07:18]} Ra3 {[%emt 0:00:44]} 29. Ra1 {[%emt 0:00:27]} Nc4
{[%emt 0:02:59]} 30. Nd3 {[%emt 0:00:21]} Nd2 {[%emt 0:00:15]} 31. h4 {[%emt 0:
05:26]} f5 {[%emt 0:02:11]} 32. Kg2 {[%emt 0:04:41]} Kg7 {[%emt 0:00:20]} 33.
Kf2 {[%emt 0:01:08]} Kf6 {[%emt 0:01:20]} 34. Kg2 {[%emt 0:02:11]} a4 {[%emt 0:
00:16]} 35. Kf2 {[%emt 0:08:18]} Ne4+ {[%emt 0:00:20]} 36. Kg2 {[%emt 0:00:02]}
Nd2 {[%emt 0:00:33]} 37. Kf2 {[%emt 0:00:17]} Nb3 {[%emt 0:00:05]} 38. axb3 {
[%emt 0:00:30]} Rxa1 {[%emt 0:00:03]} 39. bxa4 {[%emt 0:00:05]} Rxa4 {[%emt 0:
00:06]} 40. Ne1 {[%emt 0:01:22]} h6 {[%emt 0:01:16]} 41. Ng2 {[%emt 0:01:11]}
Ke5 {[%emt 0:00:17]} 42. Nf4 {[%emt 0:00:28]} Ke4 {[%emt 0:00:28]} 43. Nh5 {
[%emt 0:00:27]} Rc4 {[%emt 0:00:28]} 44. Nf6+ {[%emt 0:00:10]} Ke5 {[%emt 0:00:
08]} 45. Nh5 {[%emt 0:00:02]} Ra4 {[%emt 0:01:07]} 46. Nf4 {[%emt 0:00:28]} Kd6
{[%emt 0:01:43]} 47. Nh3 {[%emt 0:00:38]} e5 {[%emt 0:00:14]} 48. Ng1 {[%emt 0:
00:05]} f6 {[%emt 0:00:07]} 49. Nf3 {[%emt 0:00:27]} Kd5 {[%emt 0:00:11]} 50.
Ng1 {[%emt 0:01:04]} Ke4 {[%emt 0:00:21]} 51. Nf3 {[%emt 0:00:30]} Ra2 {
[%emt 0:01:01]} 52. Ne1 {[%emt 0:00:40]} Ra3 {[%emt 0:00:16]} 53. Nd3 {[%emt 0:
00:08]} Rxd3 {[%emt 0:00:10]} 54. exd3+ {[%emt 0:00:01]} Kxd3 {[%emt 0:00:09]}
55. Kf3 {[%emt 0:00:07]} h5 {[%emt 0:00:06]} 56. Kf2 {[%emt 0:00:44]} e4 {
[%emt 0:00:06]} 0-1

[Event "Limburg Open 2022"]
[Site "Maastricht"]
[Date "2022.06.05"]
[Round "5.4"]
[White "Lahaye, Rick"]
[Black "Dardha, Daniel"]
[Result "0-1"]
[ECO "A10"]
[WhiteElo "2412"]
[BlackElo "2555"]
[PlyCount "132"]
[EventDate "2022.06.03"]
[EventType "swiss"]
[EventRounds "7"]
[EventCountry "NED"]
[SourceTitle "Limburg Open"]
[Source "Limburg Open"]
[SourceDate "2022.06.06"]
[SourceVersion "7"]
[SourceVersionDate "2022.06.06"]
[SourceQuality "1"]
[TimeControl "7200+15"]

1. c4 {[%emt 0:00:01]} d6 {[%emt 0:00:57]} 2. e3 {[%emt 0:01:53]} e5 {[%emt 0:
01:21]} 3. a3 {[%emt 0:02:56]} g6 {[%emt 0:05:25]} 4. b4 {[%emt 0:00:13]} Bg7 {
[%emt 0:00:14]} 5. Bb2 {[%emt 0:00:04]} f5 {[%emt 0:02:06]} 6. d4 {[%emt 0:01:
20]} Qe7 {[%emt 0:04:34]} 7. Be2 {[%emt 0:15:29]} Nh6 {[%emt 0:06:45]} 8. Nc3 {
[%emt 0:07:38]} Nd7 {[%emt 0:03:57]} 9. c5 {[%emt 0:17:17]} Nf6 {[%emt 0:03:34]
} 10. cxd6 {[%emt 0:14:38]} cxd6 {[%emt 0:00:23]} 11. Bb5+ {[%emt 0:00:24]} Kf8
{[%emt 0:09:58]} 12. dxe5 {[%emt 0:04:00]} dxe5 {[%emt 0:00:09]} 13. Bc4 {
[%emt 0:02:44]} Be6 {[%emt 0:16:34]} 14. Bxe6 {[%emt 0:06:00]} Qxe6 {[%emt 0:
03:15]} 15. Nb5 {[%emt 0:00:06]} Rc8 {[%emt 0:18:15]} 16. Nf3 {[%emt 0:08:20]}
Nf7 {[%emt 0:04:20]} 17. Nxa7 {[%emt 0:01:22]} Rd8 {[%emt 0:06:57]} 18. Qc2 {
[%emt 0:00:15]} Ne4 {[%emt 0:00:27]} 19. O-O {[%emt 0:04:37]} Bf6 {[%emt 0:07:
04]} 20. Nb5 {[%emt 0:02:46]} Rc8 {[%emt 0:00:52]} 21. Qe2 {[%emt 0:01:17]} Kg7
{[%emt 0:01:08]} 22. Rac1 {[%emt 0:00:43]} Qb3 {[%emt 0:02:59]} 23. Rc7 {
[%emt 0:02:13]} Rxc7 {[%emt 0:01:49]} 24. Nxc7 {[%emt 0:00:02]} Rd8 {[%emt 0:
01:29]} 25. Ba1 {[%emt 0:06:38]} Kg8 {[%emt 0:02:25]} 26. Qb5 {[%emt 0:03:05]}
Ned6 {[%emt 0:07:16]} 27. Qc5 {[%emt 0:06:36]} Ne4 {[%emt 0:04:30]} 28. Qb5 {
[%emt 0:00:10]} Ned6 {[%emt 0:00:21]} 29. Qd5 {[%emt 0:06:11]} Qc4 {[%emt 0:00:
18]} 30. Qxc4 {[%emt 0:01:11]} Nxc4 {[%emt 0:00:02]} 31. Nb5 {[%emt 0:00:32]}
Ra8 {[%emt 0:02:43]} 32. Bc3 {[%emt 0:00:42]} Kg7 {[%emt 0:00:27]} 33. Ra1 {
[%emt 0:00:26]} Rc8 {[%emt 0:01:21]} 34. a4 {[%emt 0:02:40]} g5 {[%emt 0:00:41]
} 35. a5 {[%emt 0:00:44]} g4 {[%emt 0:00:22]} 36. Nd2 {[%emt 0:00:08]} Nfd6 {
[%emt 0:02:04]} 37. Nxc4 {[%emt 0:00:51]} Nxb5 {[%emt 0:00:10]} 38. a6 {
[%emt 0:02:30]} bxa6 {[%emt 0:00:26]} 39. Bxe5 {[%emt 0:00:23]} Rxc4 {[%emt 0:
00:07]} 40. Bxf6+ {[%emt 0:00:01]} Kxf6 {[%emt 0:00:01]} 41. Rxa6+ {[%emt 0:00:
02]} Kg5 {[%emt 0:00:44]} 42. h3 {[%emt 0:00:43]} Rxb4 {[%emt 0:01:35]} 43.
hxg4 {[%emt 0:00:01]} fxg4 {[%emt 0:00:09]} 44. Rc6 {[%emt 0:00:28]} Rb3 {
[%emt 0:00:21]} 45. Rc5+ {[%emt 0:00:09]} Kg6 {[%emt 0:00:02]} 46. Rc6+ {
[%emt 0:00:05]} Kg7 {[%emt 0:00:14]} 47. Rc4 {[%emt 0:00:26]} h5 {[%emt 0:00:
07]} 48. Rc5 {[%emt 0:00:06]} Kg6 {[%emt 0:00:13]} 49. Rc6+ {[%emt 0:00:02]}
Kg7 {[%emt 0:00:24]} 50. Rc5 {[%emt 0:00:07]} Nd6 {[%emt 0:00:27]} 51. Rxh5 {
[%emt 0:00:25]} Ne4 {[%emt 0:00:06]} 52. Rf5 {[%emt 0:00:25]} Kg6 {[%emt 0:00:
37]} 53. Rf4 {[%emt 0:00:17]} Nf6 {[%emt 0:00:01]} 54. Kh2 {[%emt 0:00:55]} Rb1
{[%emt 0:00:01]} 55. Rc4 {[%emt 0:00:22]} Kg5 {[%emt 0:00:24]} 56. Rc5+ {
[%emt 0:00:01]} Kg6 {[%emt 0:00:01]} 57. Rc4 {[%emt 0:00:01]} Rb5 {[%emt 0:00:
24]} 58. f3 {[%emt 0:00:23]} Kg5 {[%emt 0:00:13]} 59. Rc3 {[%emt 0:00:31]} Kh4
{[%emt 0:00:15]} 60. Rc4 {[%emt 0:00:22]} Rb3 {[%emt 0:00:19]} 61. g3+ {
[%emt 0:00:11]} Kg5 {[%emt 0:00:01]} 62. Rc5+ {[%emt 0:00:03]} Kg6 {[%emt 0:00:
00]} 63. fxg4 {[%emt 0:00:04]} Rb2+ {[%emt 0:00:05]} 64. Kg1 {[%emt 0:00:38]}
Nxg4 {[%emt 0:00:12]} 65. Rc6+ {[%emt 0:00:19]} Kf5 {[%emt 0:00:04]} 66. Rc4 {
[%emt 0:00:02]} Rb1+ {[%emt 0:00:02]} 0-1